[Event "FIDE World Rapid Chess Championship 2021"]
[White "Antipov, Mikhail Al."]
[Black "Krasenkow, Michal"]
[WhiteFideId "4107012"]
[BlackFideId "1113100"]
[WhiteElo "2644"]
[BlackElo "2430"]
[Result "1-0"]
[Round "01"]
[TimeControl "900+10"]
[Date "2021.12.26"]
[WhiteClock "0:00:27"]
[BlackClock "0:01:35"]

1. e4 {[%clk 0:15:18]}  g6 {[%clk 0:15:19]} 2. d4 {[%clk 0:15:26]}  Bg7 {[%clk 0:15:28]} 3. Nf3 {[%clk 0:15:35]}  d6 {[%clk 0:15:37]} 4. Be3 {[%clk 0:15:43]}  Nf6 {[%clk 0:15:45]} 5. Nc3 {[%clk 0:15:50]}  c6 {[%clk 0:15:54]} 6. Qd2 {[%clk 0:15:56]}  Bg4 {[%clk 0:16:03]} 7. Ng1 {[%clk 0:15:38]}  e5 {[%clk 0:15:05]} 8. h3 {[%clk 0:15:11]}  Be6 {[%clk 0:15:06]} 9. dxe5 {[%clk 0:14:28]}  dxe5 {[%clk 0:15:14]} 10. Qxd8+ {[%clk 0:14:37]}  Kxd8 {[%clk 0:15:23]} 11. Nf3 {[%clk 0:14:45]}  Nbd7 {[%clk 0:15:25]} 12. Ng5 {[%clk 0:14:52]}  Re8 {[%clk 0:15:09]} 13. Nxe6+ {[%clk 0:14:04]}  Rxe6 {[%clk 0:15:17]} 14. Bc4 {[%clk 0:13:04]}  Re7 {[%clk 0:15:26]} 15. a4 {[%clk 0:12:29]}  a5 {[%clk 0:13:40]} 16. O-O-O {[%clk 0:12:09]}  Kc7 {[%clk 0:13:48]} 17. g4 {[%clk 0:08:19]}  b6 {[%clk 0:13:13]} 18. Rd2 {[%clk 0:05:35]}  Nc5 {[%clk 0:13:05]} 19. f3 {[%clk 0:05:43]}  Rd8 {[%clk 0:11:22]} 20. Rxd8 {[%clk 0:04:44]}  Kxd8 {[%clk 0:11:30]} 21. b3 {[%clk 0:04:53]}  Nfd7 {[%clk 0:10:54]} 22. Ne2 {[%clk 0:03:30]}  Kc7 {[%clk 0:07:24]} 23. c3 {[%clk 0:03:30]}  Ne6 {[%clk 0:07:19]} 24. Kc2 {[%clk 0:03:25]}  Ndc5 {[%clk 0:07:03]} 25. h4 {[%clk 0:03:16]}  Rd7 {[%clk 0:06:25]} 26. h5 {[%clk 0:03:21]}  Bf6 {[%clk 0:06:27]} 27. hxg6 {[%clk 0:02:02]}  fxg6 {[%clk 0:06:11]} 28. b4 {[%clk 0:01:44]}  axb4 {[%clk 0:04:55]} 29. cxb4 {[%clk 0:01:53]}  Bg5 {[%clk 0:05:03]} 30. Bxg5 {[%clk 0:01:48]}  Nxg5 {[%clk 0:05:12]} 31. bxc5 {[%clk 0:01:57]}  Nxf3 {[%clk 0:05:20]} 32. cxb6+ {[%clk 0:00:49]}  Kxb6 {[%clk 0:05:29]} 33. Rb1+ {[%clk 0:00:58]}  Kc5 {[%clk 0:05:21]} 34. Bd3 {[%clk 0:01:06]}  Ra7 {[%clk 0:05:13]} 35. Rc1 {[%clk 0:00:44]}  h5 {[%clk 0:04:57]} 36. gxh5 {[%clk 0:00:37]}  gxh5 {[%clk 0:05:06]} 37. Ng3 {[%clk 0:00:27]}  h4 {[%clk 0:05:02]} 38. Nf5 {[%clk 0:00:35]}  h3 {[%clk 0:04:54]} 39. Kd1+ {[%clk 0:00:42]}  Kb6 {[%clk 0:04:49]} 40. Ke2 {[%clk 0:00:50]}  Ng5 {[%clk 0:03:55]} 41. Rb1+ {[%clk 0:00:59]}  Kc5 {[%clk 0:04:01]} 42. Rc1+ {[%clk 0:00:48]}  Kb6 {[%clk 0:04:09]} 43. Rb1+ {[%clk 0:00:58]}  Kc5 {[%clk 0:04:18]} 44. Ra1 {[%clk 0:01:07]}  Ne6 {[%clk 0:04:06]} 45. Kf2 {[%clk 0:00:30]}  Nf4 {[%clk 0:04:00]} 46. Be2 {[%clk 0:00:39]}  Kb4 {[%clk 0:03:30]} 47. Bg4 {[%clk 0:00:20]}  c5 {[%clk 0:03:09]} 48. Ne3 {[%clk 0:00:18]}  c4 {[%clk 0:02:19]} 49. Nd5+ {[%clk 0:00:23]}  Kb3 {[%clk 0:02:08]} 50. Nxf4 {[%clk 0:00:27]}  exf4 {[%clk 0:02:12]} 51. e5 {[%clk 0:00:14]}  Kb2 {[%clk 0:02:10]} 52. Re1 {[%clk 0:00:22]}  c3 {[%clk 0:02:14]} 53. Re2+ {[%clk 0:00:18]}  Kb3 {[%clk 0:02:00]} 54. Be6+ {[%clk 0:00:19]}  Kb4 {[%clk 0:02:04]} 55. Bxh3 {[%clk 0:00:27]}  Rxa4 {[%clk 0:01:35]} 56. Re4+ {[%clk 0:00:27]} 1-0


[Site "http://www.Chess.com"]

[Event "FIDE World Rapid Chess Championship 2021"]
[White "Aziz, Husain"]
[Black "Alekseenko, Kirill"]
[WhiteFideId "12100293"]
[BlackFideId "4135539"]
[WhiteElo "2430"]
[BlackElo "2637"]
[Result "0-1"]
[Round "01"]
[TimeControl "900+10"]
[Date "2021.12.26"]
[WhiteClock "0:00:21"]
[BlackClock "0:04:47"]

1. e4 {[%clk 0:15:12]}  c5 {[%clk 0:15:14]} 2. Nf3 {[%clk 0:15:17]}  d6 {[%clk 0:15:21]} 3. Bb5+ {[%clk 0:15:15]}  Nd7 {[%clk 0:15:29]} 4. d4 {[%clk 0:15:16]}  cxd4 {[%clk 0:15:21]} 5. Qxd4 {[%clk 0:15:20]}  a6 {[%clk 0:15:18]} 6. Bxd7+ {[%clk 0:15:20]}  Bxd7 {[%clk 0:15:27]} 7. Nc3 {[%clk 0:15:10]}  Nf6 {[%clk 0:15:06]} 8. Bg5 {[%clk 0:15:01]}  Rc8 {[%clk 0:14:00]} 9. O-O-O {[%clk 0:12:38]}  h6 {[%clk 0:14:08]} 10. Bxf6 {[%clk 0:00:21]}  gxf6 {[%clk 0:14:17]} 11. Nd5 {[%clk 0:10:41]}  Rg8 {[%clk 0:14:20]} 12. Nb6 {[%clk 0:08:44]}  Rc6 {[%clk 0:14:18]} 13. Nxd7 {[%clk 0:08:49]}  Qxd7 {[%clk 0:14:24]} 14. g3 {[%clk 0:08:45]}  Qc7 {[%clk 0:12:57]} 15. Qd3 {[%clk 0:08:31]}  e6 {[%clk 0:12:13]} 16. Kb1 {[%clk 0:08:38]}  Be7 {[%clk 0:12:13]} 17. Nd4 {[%clk 0:08:33]}  Rc4 {[%clk 0:12:09]} 18. Rhe1 {[%clk 0:08:22]}  Rg5 {[%clk 0:11:45]} 19. f4 {[%clk 0:08:18]}  Rgc5 {[%clk 0:11:31]} 20. f5 {[%clk 0:06:17]}  e5 {[%clk 0:08:49]} 21. Nb3 {[%clk 0:06:25]}  Rb5 {[%clk 0:08:56]} 22. Nd2 {[%clk 0:05:24]}  Rd4 {[%clk 0:08:28]} 23. Qe3 {[%clk 0:04:53]}  d5 {[%clk 0:08:35]} 24. c3 {[%clk 0:04:32]}  Ra4 {[%clk 0:07:44]} 25. exd5 {[%clk 0:04:32]}  Qa5 {[%clk 0:06:04]} 26. d6 {[%clk 0:01:27]}  Rxa2 {[%clk 0:05:06]} 27. d7+ {[%clk 0:01:34]}  Kd8 {[%clk 0:05:02]} 28. Nc4 {[%clk 0:01:43]}  Qa4 {[%clk 0:04:37]} 29. Kc1 {[%clk 0:00:25]}  Qxc4 {[%clk 0:04:43]} 30. Qa7 {[%clk 0:00:21]}  Qxc3+ {[%clk 0:04:47]} 0-1


[Site "http://www.Chess.com"]

[Event "FIDE World Rapid Chess Championship 2021"]
[White "Nevednichy, Vladislav"]
[Black "Sjugirov, Sanan"]
[WhiteFideId "1205730"]
[BlackFideId "4189302"]
[WhiteElo "2425"]
[BlackElo "2634"]
[Result "0-1"]
[Round "01"]
[TimeControl "900+10"]
[Date "2021.12.26"]
[WhiteClock "0:00:00"]
[BlackClock "0:07:58"]

1. e4 {[%clk 0:15:16]}  e5 {[%clk 0:15:17]} 2. Nf3 {[%clk 0:15:20]}  Nc6 {[%clk 0:15:26]} 3. Bc4 {[%clk 0:15:28]}  Nf6 {[%clk 0:15:24]} 4. d3 {[%clk 0:15:29]}  Bc5 {[%clk 0:14:05]} 5. O-O {[%clk 0:15:34]}  d6 {[%clk 0:14:09]} 6. c3 {[%clk 0:15:25]}  a6 {[%clk 0:14:09]} 7. a4 {[%clk 0:15:12]}  h6 {[%clk 0:14:05]} 8. Re1 {[%clk 0:14:51]}  Ba7 {[%clk 0:14:07]} 9. Nbd2 {[%clk 0:14:17]}  g5 {[%clk 0:14:09]} 10. Nf1 {[%clk 0:14:10]}  g4 {[%clk 0:14:16]} 11. N3d2 {[%clk 0:13:28]}  h5 {[%clk 0:14:24]} 12. Nb3 {[%clk 0:08:46]}  g3 {[%clk 0:14:32]} 13. hxg3 {[%clk 0:06:38]}  Bg4 {[%clk 0:14:26]} 14. Qc2 {[%clk 0:06:37]}  h4 {[%clk 0:14:32]} 15. Bg5 {[%clk 0:05:28]}  hxg3 {[%clk 0:14:38]} 16. Nxg3 {[%clk 0:05:36]}  Nh5 {[%clk 0:14:46]} 17. Be3 {[%clk 0:02:47]}  Qh4 {[%clk 0:13:03]} 18. Bxa7 {[%clk 0:00:19]}  Nf4 {[%clk 0:12:36]} 19. f3 {[%clk 0:00:17]}  Bxf3 {[%clk 0:12:39]} 20. Kf2 {[%clk 0:00:15]}  Bxg2 {[%clk 0:11:43]} 21. Rh1 {[%clk 0:00:23]}  Bxh1 {[%clk 0:10:48]} 22. Rxh1 {[%clk 0:00:32]}  Qf6 {[%clk 0:09:05]} 23. Rxh8+ {[%clk 0:00:36]}  Qxh8 {[%clk 0:09:14]} 24. Kf3 {[%clk 0:00:36]}  Nxa7 {[%clk 0:09:15]} 25. Nd2 {[%clk 0:00:16]}  Nc6 {[%clk 0:08:59]} 26. Ndf1 {[%clk 0:00:19]}  O-O-O {[%clk 0:08:47]} 27. b4 {[%clk 0:00:27]}  f5 {[%clk 0:07:58]} 28. exf5 {[%clk 0:00:00]} 0-1


[Site "http://www.Chess.com"]

[Event "FIDE World Rapid Chess Championship 2021"]
[White "Riazantsev, Alexander"]
[Black "Dziuba, Marcin"]
[WhiteFideId "4125029"]
[BlackFideId "1112953"]
[WhiteElo "2632"]
[BlackElo "2424"]
[Result "0-1"]
[Round "01"]
[TimeControl "900+10"]
[Date "2021.12.26"]
[WhiteClock "0:00:15"]
[BlackClock "0:02:02"]

1. e4 {[%clk 0:15:18]}  c5 {[%clk 0:15:13]} 2. Nf3 {[%clk 0:15:23]}  d6 {[%clk 0:15:21]} 3. Bb5+ {[%clk 0:15:30]}  Bd7 {[%clk 0:15:25]} 4. Bxd7+ {[%clk 0:15:37]}  Nxd7 {[%clk 0:15:32]} 5. O-O {[%clk 0:15:33]}  Ngf6 {[%clk 0:15:28]} 6. Re1 {[%clk 0:15:33]}  e6 {[%clk 0:15:27]} 7. c3 {[%clk 0:14:55]}  Be7 {[%clk 0:15:30]} 8. d4 {[%clk 0:15:04]}  O-O {[%clk 0:15:37]} 9. e5 {[%clk 0:13:41]}  Ne8 {[%clk 0:15:04]} 10. Qe2 {[%clk 0:12:32]}  Rc8 {[%clk 0:15:00]} 11. exd6 {[%clk 0:12:03]}  Bxd6 {[%clk 0:14:24]} 12. Nbd2 {[%clk 0:12:13]}  cxd4 {[%clk 0:13:18]} 13. Nxd4 {[%clk 0:12:20]}  Nef6 {[%clk 0:11:46]} 14. Nxe6 {[%clk 0:11:50]}  Bxh2+ {[%clk 0:11:51]} 15. Kxh2 {[%clk 0:11:58]}  fxe6 {[%clk 0:12:00]} 16. Kg1 {[%clk 0:09:23]}  Kh8 {[%clk 0:09:53]} 17. Nf1 {[%clk 0:08:26]}  e5 {[%clk 0:08:03]} 18. Be3 {[%clk 0:08:19]}  Qa5 {[%clk 0:07:26]} 19. c4 {[%clk 0:07:51]}  e4 {[%clk 0:07:24]} 20. Ng3 {[%clk 0:06:50]}  Ne5 {[%clk 0:07:22]} 21. b3 {[%clk 0:06:37]}  Rce8 {[%clk 0:07:11]} 22. Bd4 {[%clk 0:05:53]}  Nd3 {[%clk 0:06:18]} 23. Rf1 {[%clk 0:06:02]}  Nf4 {[%clk 0:06:16]} 24. Qb2 {[%clk 0:04:31]}  Qg5 {[%clk 0:06:19]} 25. Be3 {[%clk 0:03:01]}  Ng4 {[%clk 0:06:15]} 26. Rfe1 {[%clk 0:00:34]}  Qh4 {[%clk 0:05:47]} 27. Nf1 {[%clk 0:00:43]}  Nd3 {[%clk 0:03:46]} 28. Qd4 {[%clk 0:00:52]}  Rxf2 {[%clk 0:02:59]} 29. Qd6 {[%clk 0:00:31]}  Rf6 {[%clk 0:02:50]} 30. Qc7 {[%clk 0:00:13]}  Nxe1 {[%clk 0:02:21]} 31. Bd4 {[%clk 0:00:23]}  Rg6 {[%clk 0:02:21]} 32. Qf7 {[%clk 0:00:15]}  Nf3+ {[%clk 0:02:02]} 0-1


[Site "http://www.Chess.com"]

[Event "FIDE World Rapid Chess Championship 2021"]
[White "Cuenca Jimenez, Jose Fernando"]
[Black "Volokitin, Andrei"]
[WhiteFideId "2255570"]
[BlackFideId "14107090"]
[WhiteElo "2421"]
[BlackElo "2631"]
[Result "0-1"]
[Round "01"]
[TimeControl "900+10"]
[Date "2021.12.26"]
[WhiteClock "0:00:33"]
[BlackClock "0:01:29"]

1. d4 {[%clk 0:15:17]}  Nf6 {[%clk 0:15:18]} 2. c4 {[%clk 0:15:25]}  e6 {[%clk 0:15:25]} 3. Nf3 {[%clk 0:15:30]}  d5 {[%clk 0:15:29]} 4. Nc3 {[%clk 0:15:38]}  Bb4 {[%clk 0:15:34]} 5. Qa4+ {[%clk 0:15:08]}  Nc6 {[%clk 0:15:42]} 6. a3 {[%clk 0:15:16]}  Bxc3+ {[%clk 0:15:49]} 7. bxc3 {[%clk 0:15:24]}  Bd7 {[%clk 0:15:58]} 8. cxd5 {[%clk 0:15:19]}  exd5 {[%clk 0:16:06]} 9. Bg5 {[%clk 0:14:45]}  h6 {[%clk 0:15:09]} 10. Bxf6 {[%clk 0:14:07]}  Qxf6 {[%clk 0:15:16]} 11. e3 {[%clk 0:13:39]}  O-O {[%clk 0:09:01]} 12. Be2 {[%clk 0:13:04]}  b6 {[%clk 0:04:55]} 13. O-O {[%clk 0:12:12]}  Rfd8 {[%clk 0:05:02]} 14. Rac1 {[%clk 0:08:50]}  Na5 {[%clk 0:04:25]} 15. Qb4 {[%clk 0:08:51]}  Rac8 {[%clk 0:04:03]} 16. c4 {[%clk 0:08:01]}  dxc4 {[%clk 0:03:52]} 17. Bxc4 {[%clk 0:07:55]}  Nxc4 {[%clk 0:03:41]} 18. Rxc4 {[%clk 0:07:22]}  Bc6 {[%clk 0:02:32]} 19. Nd2 {[%clk 0:03:25]}  Bd5 {[%clk 0:02:37]} 20. Rc3 {[%clk 0:02:09]}  c5 {[%clk 0:02:29]} 21. dxc5 {[%clk 0:01:51]}  Bxg2 {[%clk 0:02:09]} 22. Kxg2 {[%clk 0:01:55]}  Rxd2 {[%clk 0:02:16]} 23. Rc4 {[%clk 0:00:48]}  Rd5 {[%clk 0:01:51]} 24. Rfc1 {[%clk 0:00:57]}  bxc5 {[%clk 0:01:04]} 25. Qc3 {[%clk 0:00:23]}  Rg5+ {[%clk 0:00:38]} 26. Kf1 {[%clk 0:00:32]}  Qf3 {[%clk 0:00:46]} 27. Rf4 {[%clk 0:00:39]}  Qh3+ {[%clk 0:00:42]} 28. Ke2 {[%clk 0:00:43]}  Qh5+ {[%clk 0:00:49]} 29. Kf1 {[%clk 0:00:18]}  Qxh2 {[%clk 0:00:56]} 30. Qc4 {[%clk 0:00:22]}  Rg1+ {[%clk 0:01:00]} 31. Ke2 {[%clk 0:00:31]}  Qh5+ {[%clk 0:01:08]} 32. Rf3 {[%clk 0:00:22]}  Rxc1 {[%clk 0:01:12]} 33. Qxc1 {[%clk 0:00:31]}  Rc6 {[%clk 0:01:09]} 34. Qd1 {[%clk 0:00:17]}  Rf6 {[%clk 0:01:11]} 35. Qd8+ {[%clk 0:00:25]}  Kh7 {[%clk 0:01:20]} 36. Qd3+ {[%clk 0:00:33]}  g6 {[%clk 0:01:29]} 0-1


[Site "http://www.Chess.com"]

[Event "FIDE World Rapid Chess Championship 2021"]
[White "Predke, Alexandr"]
[Black "Sadzikowski, Daniel"]
[WhiteFideId "24107581"]
[BlackFideId "1132253"]
[WhiteElo "2630"]
[BlackElo "2414"]
[Result "1-0"]
[Round "01"]
[TimeControl "900+10"]
[Date "2021.12.26"]
[WhiteClock "0:03:29"]
[BlackClock "0:00:33"]

1. d4 {[%clk 0:15:14]}  Nf6 {[%clk 0:15:18]} 2. c4 {[%clk 0:15:17]}  e6 {[%clk 0:15:26]} 3. Nc3 {[%clk 0:15:25]}  Bb4 {[%clk 0:15:33]} 4. e3 {[%clk 0:15:32]}  O-O {[%clk 0:15:39]} 5. Bd3 {[%clk 0:15:40]}  d5 {[%clk 0:15:37]} 6. cxd5 {[%clk 0:15:45]}  exd5 {[%clk 0:15:23]} 7. a3 {[%clk 0:15:53]}  Bd6 {[%clk 0:14:55]} 8. Qc2 {[%clk 0:16:01]}  a6 {[%clk 0:13:57]} 9. Nge2 {[%clk 0:16:07]}  Re8 {[%clk 0:13:59]} 10. O-O {[%clk 0:16:13]}  Nbd7 {[%clk 0:13:15]} 11. Nf4 {[%clk 0:16:14]}  c6 {[%clk 0:12:54]} 12. f3 {[%clk 0:16:12]}  Bxf4 {[%clk 0:11:14]} 13. exf4 {[%clk 0:16:20]}  c5 {[%clk 0:11:23]} 14. Qf2 {[%clk 0:16:17]}  cxd4 {[%clk 0:10:15]} 15. Qxd4 {[%clk 0:16:22]}  Qb6 {[%clk 0:09:09]} 16. Ne2 {[%clk 0:13:59]}  Qxd4+ {[%clk 0:08:40]} 17. Nxd4 {[%clk 0:14:07]}  Nc5 {[%clk 0:08:49]} 18. Bc2 {[%clk 0:14:02]}  Bd7 {[%clk 0:08:20]} 19. Bd2 {[%clk 0:11:11]}  Rac8 {[%clk 0:05:29]} 20. Rac1 {[%clk 0:11:17]}  Ne6 {[%clk 0:03:27]} 21. Nxe6 {[%clk 0:06:31]}  Rxe6 {[%clk 0:03:00]} 22. Bd3 {[%clk 0:06:07]}  Rxc1 {[%clk 0:02:30]} 23. Rxc1 {[%clk 0:06:15]}  Rc6 {[%clk 0:02:37]} 24. Rxc6 {[%clk 0:06:06]}  Bxc6 {[%clk 0:02:46]} 25. Bc3 {[%clk 0:06:01]}  Nd7 {[%clk 0:02:37]} 26. Bd4 {[%clk 0:05:29]}  Bb5 {[%clk 0:02:23]} 27. Bc2 {[%clk 0:05:25]}  Nb8 {[%clk 0:02:02]} 28. Kf2 {[%clk 0:05:19]}  Nc6 {[%clk 0:02:01]} 29. Ke3 {[%clk 0:05:27]}  Bf1 {[%clk 0:01:42]} 30. g3 {[%clk 0:05:31]}  h5 {[%clk 0:01:02]} 31. g4 {[%clk 0:04:39]}  Bg2 {[%clk 0:00:50]} 32. Bc5 {[%clk 0:04:24]}  d4+ {[%clk 0:00:16]} 33. Kf2 {[%clk 0:04:23]}  Bh3 {[%clk 0:00:24]} 34. Bd3 {[%clk 0:03:00]}  hxg4 {[%clk 0:00:15]} 35. Kg3 {[%clk 0:03:09]}  f5 {[%clk 0:00:14]} 36. Bxf5 {[%clk 0:03:17]}  Bf1 {[%clk 0:00:15]} 37. Kf2 {[%clk 0:03:26]}  Bc4 {[%clk 0:00:17]} 38. fxg4 {[%clk 0:03:31]}  Kf7 {[%clk 0:00:25]} 39. Bc8 {[%clk 0:03:18]}  d3 {[%clk 0:00:17]} 40. Ke3 {[%clk 0:03:12]}  Na5 {[%clk 0:00:22]} 41. Bb4 {[%clk 0:03:20]}  Nc6 {[%clk 0:00:25]} 42. Bxb7 {[%clk 0:03:21]}  Nxb4 {[%clk 0:00:33]} 43. axb4 {[%clk 0:03:29]} 1-0


[Site "http://www.Chess.com"]

[Event "FIDE World Rapid Chess Championship 2021"]
[White "Saraci, Nderim"]
[Black "Vidit, Santosh Gujrathi"]
[WhiteFideId "6351921"]
[BlackFideId "5029465"]
[WhiteElo "2414"]
[BlackElo "2629"]
[Result "0-1"]
[Round "01"]
[TimeControl "900+10"]
[Date "2021.12.26"]
[WhiteClock "0:00:13"]
[BlackClock "0:00:25"]

1. d4 {[%clk 0:15:17]}  Nf6 {[%clk 0:15:15]} 2. Nf3 {[%clk 0:15:22]}  d5 {[%clk 0:15:08]} 3. c4 {[%clk 0:14:23]}  e6 {[%clk 0:15:06]} 4. g3 {[%clk 0:14:23]}  Bb4+ {[%clk 0:14:10]} 5. Bd2 {[%clk 0:12:15]}  a5 {[%clk 0:14:16]} 6. Qc2 {[%clk 0:11:28]}  O-O {[%clk 0:13:57]} 7. Bg2 {[%clk 0:11:29]}  c5 {[%clk 0:13:42]} 8. cxd5 {[%clk 0:07:08]}  cxd4 {[%clk 0:13:48]} 9. Nxd4 {[%clk 0:06:32]}  Qb6 {[%clk 0:13:49]} 10. e3 {[%clk 0:06:08]}  exd5 {[%clk 0:13:55]} 11. O-O {[%clk 0:05:49]}  Nc6 {[%clk 0:13:41]} 12. Nxc6 {[%clk 0:05:32]}  bxc6 {[%clk 0:13:49]} 13. Rc1 {[%clk 0:05:28]}  Rb8 {[%clk 0:13:45]} 14. Nc3 {[%clk 0:04:03]}  h5 {[%clk 0:13:48]} 15. Na4 {[%clk 0:03:47]}  Qd8 {[%clk 0:13:46]} 16. Bxb4 {[%clk 0:03:41]}  Rxb4 {[%clk 0:13:52]} 17. b3 {[%clk 0:03:36]}  h4 {[%clk 0:13:36]} 18. Qxc6 {[%clk 0:02:26]}  h3 {[%clk 0:13:19]} 19. Bf1 {[%clk 0:01:39]}  d4 {[%clk 0:12:23]} 20. Qc7 {[%clk 0:01:33]}  dxe3 {[%clk 0:10:33]} 21. Qxd8 {[%clk 0:01:41]}  exf2+ {[%clk 0:10:29]} 22. Kxf2 {[%clk 0:01:49]}  Rxd8 {[%clk 0:10:34]} 23. Rd1 {[%clk 0:01:35]}  Rbd4 {[%clk 0:09:25]} 24. Nc3 {[%clk 0:01:12]}  Bg4 {[%clk 0:05:55]} 25. Rxd4 {[%clk 0:01:20]}  Rxd4 {[%clk 0:06:04]} 26. Ke3 {[%clk 0:01:23]}  Rd8 {[%clk 0:05:55]} 27. Rc1 {[%clk 0:01:14]}  g6 {[%clk 0:04:15]} 28. Bd3 {[%clk 0:00:13]}  Kg7 {[%clk 0:04:05]} 29. Rf1 {[%clk 0:00:12]}  Bh5 {[%clk 0:03:05]} 30. Be2 {[%clk 0:00:21]}  Re8+ {[%clk 0:00:34]} 31. Kd2 {[%clk 0:00:24]}  Bxe2 {[%clk 0:00:42]} 32. Nxe2 {[%clk 0:00:32]}  Ng4 {[%clk 0:00:46]} 33. Rh1 {[%clk 0:00:19]}  Rd8+ {[%clk 0:00:26]} 34. Kc1 {[%clk 0:00:12]}  g5 {[%clk 0:00:26]} 35. Nc3 {[%clk 0:00:14]}  Kg6 {[%clk 0:00:30]} 36. a3 {[%clk 0:00:19]}  Rd3 {[%clk 0:00:29]} 37. Kc2 {[%clk 0:00:23]}  Rf3 {[%clk 0:00:37]} 38. Nd1 {[%clk 0:00:28]}  f5 {[%clk 0:00:36]} 39. b4 {[%clk 0:00:16]}  Rxa3 {[%clk 0:00:34]} 40. b5 {[%clk 0:00:25]}  Ra4 {[%clk 0:00:16]} 41. Nc3 {[%clk 0:00:25]}  Rb4 {[%clk 0:00:23]} 42. Rb1 {[%clk 0:00:13]}  Rxb1 {[%clk 0:00:12]} 43. Nxb1 {[%clk 0:00:12]}  Nxh2 {[%clk 0:00:13]} 44. b6 {[%clk 0:00:20]}  Nf3 {[%clk 0:00:22]} 45. Nd2 {[%clk 0:00:16]}  Nd4+ {[%clk 0:00:22]} 46. Kd3 {[%clk 0:00:24]}  h2 {[%clk 0:00:25]} 47. Kxd4 {[%clk 0:00:13]} 0-1


[Site "http://www.Chess.com"]

[Event "FIDE World Rapid Chess Championship 2021"]
[White "Peng, Li Min"]
[Black "Howell, David W L"]
[WhiteFideId "14112620"]
[BlackFideId "410608"]
[WhiteElo "2411"]
[BlackElo "2624"]
[Result "1/2-1/2"]
[Round "01"]
[TimeControl "900+10"]
[Date "2021.12.26"]
[WhiteClock "0:06:29"]
[BlackClock "0:01:46"]

1. d4 {[%clk 0:15:14]}  Nf6 {[%clk 0:15:12]} 2. c4 {[%clk 0:14:57]}  g6 {[%clk 0:15:06]} 3. Nc3 {[%clk 0:14:44]}  d5 {[%clk 0:15:13]} 4. cxd5 {[%clk 0:14:20]}  Nxd5 {[%clk 0:15:20]} 5. e4 {[%clk 0:14:28]}  Nxc3 {[%clk 0:15:26]} 6. bxc3 {[%clk 0:14:36]}  Bg7 {[%clk 0:15:33]} 7. Nf3 {[%clk 0:14:34]}  c5 {[%clk 0:15:36]} 8. Be3 {[%clk 0:14:22]}  Qa5 {[%clk 0:15:29]} 9. Qd2 {[%clk 0:14:25]}  Nc6 {[%clk 0:15:20]} 10. Rc1 {[%clk 0:14:27]}  cxd4 {[%clk 0:15:08]} 11. cxd4 {[%clk 0:14:31]}  Qxd2+ {[%clk 0:15:14]} 12. Kxd2 {[%clk 0:14:39]}  O-O {[%clk 0:15:19]} 13. Bb5 {[%clk 0:14:07]}  f5 {[%clk 0:11:18]} 14. exf5 {[%clk 0:14:02]}  Bxf5 {[%clk 0:10:54]} 15. Bxc6 {[%clk 0:14:06]}  bxc6 {[%clk 0:11:01]} 16. Rxc6 {[%clk 0:14:13]}  Rab8 {[%clk 0:07:29]} 17. Ra1 {[%clk 0:14:22]}  Rb2+ {[%clk 0:06:53]} 18. Ke1 {[%clk 0:14:30]}  Rfb8 {[%clk 0:04:48]} 19. Nd2 {[%clk 0:06:40]}  R8b4 {[%clk 0:04:16]} 20. Nc4 {[%clk 0:05:42]}  Rc2 {[%clk 0:03:31]} 21. Ne5 {[%clk 0:05:47]}  Bxe5 {[%clk 0:01:53]} 22. Rxc2 {[%clk 0:05:55]}  Bxc2 {[%clk 0:02:01]} 23. dxe5 {[%clk 0:06:04]}  Rb1+ {[%clk 0:02:09]} 24. Rxb1 {[%clk 0:06:13]}  Bxb1 {[%clk 0:02:17]} 25. Bxa7 {[%clk 0:05:52]}  Bxa2 {[%clk 0:02:24]} 26. Kd2 {[%clk 0:06:00]}  Kf7 {[%clk 0:02:32]} 27. Ke3 {[%clk 0:06:08]}  Ke6 {[%clk 0:02:35]} 28. Kf4 {[%clk 0:06:15]}  h5 {[%clk 0:01:23]} 29. Bd4 {[%clk 0:06:17]}  Bd5 {[%clk 0:01:27]} 30. f3 {[%clk 0:06:21]}  Kf7 {[%clk 0:01:33]} 31. g4 {[%clk 0:06:26]}  Bc6 {[%clk 0:01:35]} 32. Kg3 {[%clk 0:06:24]}  e6 {[%clk 0:01:38]} 33. gxh5 {[%clk 0:06:25]}  gxh5 {[%clk 0:01:46]} 34. Kf4 {[%clk 0:06:29]} 1/2-1/2


[Site "http://www.Chess.com"]

[Event "FIDE World Rapid Chess Championship 2021"]
[White "Cheparinov, Ivan"]
[Black "Dragnev, Valentin"]
[WhiteFideId "2905540"]
[BlackFideId "1634852"]
[WhiteElo "2621"]
[BlackElo "2409"]
[Result "1-0"]
[Round "01"]
[TimeControl "900+10"]
[Date "2021.12.26"]
[WhiteClock "0:01:56"]
[BlackClock "0:00:38"]

1. d4 {[%clk 0:15:17]}  Nf6 {[%clk 0:15:18]} 2. c4 {[%clk 0:15:25]}  e6 {[%clk 0:15:22]} 3. Nf3 {[%clk 0:15:32]}  d5 {[%clk 0:15:27]} 4. g3 {[%clk 0:15:39]}  Bb4+ {[%clk 0:15:31]} 5. Bd2 {[%clk 0:15:46]}  Be7 {[%clk 0:15:39]} 6. Bg2 {[%clk 0:15:53]}  O-O {[%clk 0:15:46]} 7. O-O {[%clk 0:16:00]}  Nbd7 {[%clk 0:15:54]} 8. Qc2 {[%clk 0:16:07]}  c6 {[%clk 0:15:56]} 9. Rd1 {[%clk 0:15:59]}  b6 {[%clk 0:15:57]} 10. b3 {[%clk 0:15:43]}  a5 {[%clk 0:15:44]} 11. Bc3 {[%clk 0:14:35]}  Ne4 {[%clk 0:15:42]} 12. Bb2 {[%clk 0:14:25]}  Bb7 {[%clk 0:13:43]} 13. Nc3 {[%clk 0:14:20]}  f5 {[%clk 0:13:27]} 14. e3 {[%clk 0:14:05]}  Bd6 {[%clk 0:13:09]} 15. Ne5 {[%clk 0:12:47]}  Rc8 {[%clk 0:11:53]} 16. Rac1 {[%clk 0:11:29]}  Qe7 {[%clk 0:11:05]} 17. Na4 {[%clk 0:09:09]}  Nxe5 {[%clk 0:04:20]} 18. dxe5 {[%clk 0:09:18]}  Bc7 {[%clk 0:04:29]} 19. f3 {[%clk 0:07:01]}  Ng5 {[%clk 0:04:37]} 20. h4 {[%clk 0:07:03]}  Nf7 {[%clk 0:04:14]} 21. f4 {[%clk 0:07:11]}  Nh6 {[%clk 0:03:24]} 22. cxd5 {[%clk 0:06:56]}  exd5 {[%clk 0:02:46]} 23. Qe2 {[%clk 0:06:58]}  Rfd8 {[%clk 0:02:39]} 24. Rd2 {[%clk 0:06:06]}  Rd7 {[%clk 0:02:41]} 25. Bd4 {[%clk 0:06:05]}  c5 {[%clk 0:02:34]} 26. Bb2 {[%clk 0:06:09]}  Qe6 {[%clk 0:01:57]} 27. Rcd1 {[%clk 0:05:53]}  Nf7 {[%clk 0:01:47]} 28. Nc3 {[%clk 0:03:56]}  Rcd8 {[%clk 0:01:51]} 29. Bf3 {[%clk 0:03:08]}  Nxe5 {[%clk 0:00:46]} 30. fxe5 {[%clk 0:03:13]}  Bxe5 {[%clk 0:00:54]} 31. Qf2 {[%clk 0:01:30]}  h6 {[%clk 0:00:43]} 32. h5 {[%clk 0:01:30]}  Kh8 {[%clk 0:00:38]} 33. Ne2 {[%clk 0:01:35]}  Bxb2 {[%clk 0:00:26]} 34. Nf4 {[%clk 0:01:27]}  Qe8 {[%clk 0:00:20]} 35. Rxb2 {[%clk 0:01:34]}  d4 {[%clk 0:00:28]} 36. exd4 {[%clk 0:01:37]}  Bxf3 {[%clk 0:00:25]} 37. Qxf3 {[%clk 0:01:45]}  cxd4 {[%clk 0:00:30]} 38. Re2 {[%clk 0:01:52]}  Qf7 {[%clk 0:00:38]} 39. Ng6+ {[%clk 0:01:56]} 1-0


[Site "http://www.Chess.com"]